[Event "*** Titled Tuesday Blitz"]
[Site "Chess.com"]
[Date "2020.12.29"]
[Round "5"]
[White "Alexandercs432"]
[Black "queen_iryna"]
[Result "0-1"]
[WhiteElo "2194"]
[BlackElo "2344"]
[TimeControl "180+1"]
[EndTime "10:54:53 PST"]
[Termination "queen_iryna won on time"]

1. e4 {[%clk 0:02:59.8]} 1... d6 {[%clk 0:02:42.9]} 2. d4 {[%clk 0:02:59.6]}
2... Nf6 {[%clk 0:02:42.4]} 3. Nc3 {[%clk 0:02:59.4]} 3... e5 {[%clk 0:02:41.6]}
4. Nf3 {[%clk 0:02:58.1]} 4... Nbd7 {[%clk 0:02:41.3]} 5. Bc4 {[%clk 0:02:57.1]}
5... Be7 {[%clk 0:02:41.3]} 6. O-O {[%clk 0:02:56.6]} 6... O-O {[%clk 0:02:41]}
7. Re1 {[%clk 0:02:55.8]} 7... c6 {[%clk 0:02:40.9]} 8. a4 {[%clk 0:02:54.9]}
8... h6 {[%clk 0:02:41.1]} 9. h3 {[%clk 0:02:54.5]} 9... Re8 {[%clk 0:02:40.6]}
10. dxe5 {[%clk 0:02:53.9]} 10... Nxe5 {[%clk 0:02:31.7]} 11. Nxe5 {[%clk
0:02:54.1]} 11... dxe5 {[%clk 0:02:32.6]} 12. Qe2 {[%clk 0:02:53.8]} 12... Bc5
{[%clk 0:02:29.3]} 13. Be3 {[%clk 0:02:51.1]} 13... Bxe3 {[%clk 0:02:18.9]} 14.
Qxe3 {[%clk 0:02:52]} 14... Be6 {[%clk 0:02:19.3]} 15. Rad1 {[%clk 0:02:48.8]}
15... Qe7 {[%clk 0:02:14.5]} 16. Bxe6 {[%clk 0:02:48.9]} 16... Qxe6 {[%clk
0:02:15.4]} 17. b3 {[%clk 0:02:36.9]} 17... Nh5 {[%clk 0:01:44.9]} 18. Ne2
{[%clk 0:02:35]} 18... a6 {[%clk 0:01:30.9]} 19. Rd2 {[%clk 0:02:24.1]} 19...
Rad8 {[%clk 0:01:26.4]} 20. Red1 {[%clk 0:02:13.9]} 20... Qe7 {[%clk 0:01:25.9]}
21. Qb6 {[%clk 0:01:51.5]} 21... Rxd2 {[%clk 0:01:23.7]} 22. Rxd2 {[%clk
0:01:52.1]} 22... Nf4 {[%clk 0:01:20]} 23. Nxf4 {[%clk 0:01:50.9]} 23... exf4
{[%clk 0:01:20.9]} 24. f3 {[%clk 0:01:49.6]} 24... Qh4 {[%clk 0:01:05.3]} 25.
Qf2 {[%clk 0:01:39.3]} 25... Qe7 {[%clk 0:00:56.8]} 26. Qb6 {[%clk 0:01:37.1]}
26... f5 {[%clk 0:00:45.3]} 27. Re2 {[%clk 0:01:28.7]} 27... Qd7 {[%clk
0:00:29.2]} 28. Qf2 {[%clk 0:01:03.4]} 28... fxe4 {[%clk 0:00:29.2]} 29. fxe4
{[%clk 0:00:52.2]} 29... Rf8 {[%clk 0:00:29.1]} 30. Rd2 {[%clk 0:00:39.6]} 30...
Qe6 {[%clk 0:00:27.6]} 31. Qf3 {[%clk 0:00:28.9]} 31... Qe5 {[%clk 0:00:27.8]}
32. Rf2 {[%clk 0:00:19.5]} 32... Rf6 {[%clk 0:00:20]} 33. Kh2 {[%clk 0:00:19.7]}
33... Kh7 {[%clk 0:00:19.6]} 34. Re2 {[%clk 0:00:14.3]} 34... Re6 {[%clk
0:00:18.5]} 35. Kg1 {[%clk 0:00:12.7]} 35... Qc5+ {[%clk 0:00:18]} 0-1

[Event "*** Titled Tuesday Blitz"]
[Site "Chess.com"]
[Date "2020.12.29"]
[Round "5"]
[White "Eternauta2400"]
[Black "chessdjw"]
[Result "1-0"]
[WhiteElo "2448"]
[BlackElo "2611"]
[TimeControl "180+1"]
[EndTime "10:54:54 PST"]
[Termination "Eternauta2400 won on time"]

1. e4 {[%clk 0:02:58.3]} 1... e5 {[%clk 0:02:59.3]} 2. Nf3 {[%clk 0:02:57.5]}
2... Nc6 {[%clk 0:02:59.3]} 3. Nc3 {[%clk 0:02:58]} 3... Nf6 {[%clk 0:02:58.2]}
4. d4 {[%clk 0:02:57]} 4... exd4 {[%clk 0:02:58]} 5. Nxd4 {[%clk 0:02:55.5]}
5... Bb4 {[%clk 0:02:56.2]} 6. Nxc6 {[%clk 0:02:55.3]} 6... bxc6 {[%clk
0:02:56.7]} 7. Bd3 {[%clk 0:02:54.1]} 7... O-O {[%clk 0:02:57]} 8. O-O {[%clk
0:02:49.2]} 8... Re8 {[%clk 0:02:57.5]} 9. Bg5 {[%clk 0:02:46.2]} 9... h6 {[%clk
0:02:56.6]} 10. Bh4 {[%clk 0:02:42.8]} 10... Rb8 {[%clk 0:02:55.7]} 11. f4
{[%clk 0:02:38.4]} 11... Be7 {[%clk 0:02:40.9]} 12. Rb1 {[%clk 0:02:38.5]} 12...
d5 {[%clk 0:02:26.4]} 13. e5 {[%clk 0:02:34.3]} 13... Ng4 {[%clk 0:02:25.6]} 14.
Bxe7 {[%clk 0:02:29.8]} 14... Qxe7 {[%clk 0:02:26.5]} 15. Qe2 {[%clk 0:02:25.2]}
15... Qc5+ {[%clk 0:00:53.5]} 16. Kh1 {[%clk 0:02:24.3]} 16... Qe3 {[%clk
0:00:53]} 17. Nd1 {[%clk 0:02:15.1]} 17... Qxe2 {[%clk 0:00:47.4]} 18. Bxe2
{[%clk 0:02:15.3]} 18... Bf5 {[%clk 0:00:32.4]} 19. Rc1 {[%clk 0:01:58.2]} 19...
d4 {[%clk 0:00:32.1]} 20. h3 {[%clk 0:01:46.6]} 20... Ne3 {[%clk 0:00:31.4]} 21.
Nxe3 {[%clk 0:01:47.1]} 21... dxe3 {[%clk 0:00:32.3]} 22. b3 {[%clk 0:01:47.6]}
22... Rbd8 {[%clk 0:00:27.4]} 23. Rf3 {[%clk 0:01:45.6]} 23... Rd2 {[%clk
0:00:24]} 24. Rxe3 {[%clk 0:01:45.6]} 24... Bxc2 {[%clk 0:00:24]} 25. a4 {[%clk
0:01:32.6]} 25... Rb8 {[%clk 0:00:21.3]} 26. Bc4 {[%clk 0:01:31.5]} 26... Kf8
{[%clk 0:00:20.5]} 27. f5 {[%clk 0:01:12.2]} 27... Rbd8 {[%clk 0:00:20.5]} 28.
e6 {[%clk 0:01:05.4]} 28... fxe6 {[%clk 0:00:20.4]} 29. fxe6 {[%clk 0:01:03.5]}
29... Ke7 {[%clk 0:00:20.6]} 30. Kh2 {[%clk 0:01:00.3]} 30... Rf8 {[%clk
0:00:20.4]} 31. Rg3 {[%clk 0:00:46.3]} 31... g5 {[%clk 0:00:19.8]} 32. h4 {[%clk
0:00:45.7]} 32... gxh4 {[%clk 0:00:18.4]} 33. Rg7+ {[%clk 0:00:44.5]} 33... Kf6
{[%clk 0:00:17.1]} 34. Rxc7 {[%clk 0:00:39.5]} 34... Rg8 {[%clk 0:00:14.6]} 35.
Rf1+ {[%clk 0:00:35.1]} 35... Ke5 {[%clk 0:00:14]} 36. Re1+ {[%clk 0:00:21.1]}
36... Kf6 {[%clk 0:00:06]} 37. Rf7+ {[%clk 0:00:20.1]} 37... Kg6 {[%clk
0:00:06.3]} 38. e7 {[%clk 0:00:18.8]} 38... Kh5 {[%clk 0:00:03.4]} 39. Re5+
{[%clk 0:00:16.7]} 1-0

[Event "*** Titled Tuesday Blitz"]
[Site "Chess.com"]
[Date "2020.12.29"]
[Round "5"]
[White "Titus369"]
[Black "malakismayil"]
[Result "1-0"]
[WhiteElo "2530"]
[BlackElo "2301"]
[TimeControl "180+1"]
[EndTime "10:54:54 PST"]
[Termination "Titus369 won on time"]

1. e4 {[%clk 0:03:00.6]} 1... e5 {[%clk 0:02:58.5]} 2. Nf3 {[%clk 0:02:59.7]}
2... Nc6 {[%clk 0:02:58.1]} 3. Bb5 {[%clk 0:02:52.5]} 3... Nf6 {[%clk 0:02:55]}
4. O-O {[%clk 0:02:48.2]} 4... d6 {[%clk 0:02:52.9]} 5. c3 {[%clk 0:02:47]} 5...
Be7 {[%clk 0:02:49.8]} 6. d4 {[%clk 0:02:46.7]} 6... exd4 {[%clk 0:02:50.7]} 7.
cxd4 {[%clk 0:02:41.3]} 7... Bd7 {[%clk 0:02:50.4]} 8. Nc3 {[%clk 0:02:40.6]}
8... O-O {[%clk 0:02:45.1]} 9. Re1 {[%clk 0:02:40.4]} 9... Bg4 {[%clk
0:02:24.4]} 10. Be3 {[%clk 0:02:38.8]} 10... a6 {[%clk 0:02:15.7]} 11. Bd3
{[%clk 0:02:36.8]} 11... h6 {[%clk 0:02:15.2]} 12. h3 {[%clk 0:02:35.9]} 12...
Bh5 {[%clk 0:02:10.1]} 13. a3 {[%clk 0:02:31.4]} 13... Re8 {[%clk 0:02:08.1]}
14. Rc1 {[%clk 0:02:26]} 14... Bf8 {[%clk 0:02:03.6]} 15. Bb1 {[%clk 0:02:22.7]}
15... Bg6 {[%clk 0:01:56.4]} 16. Nh4 {[%clk 0:02:20.7]} 16... Bh7 {[%clk
0:01:52.6]} 17. Qf3 {[%clk 0:02:11.1]} 17... Nxe4 {[%clk 0:01:38.5]} 18. Nxe4
{[%clk 0:02:05.5]} 18... Qxh4 {[%clk 0:01:33.3]} 19. Ng3 {[%clk 0:02:00.8]}
19... Bxb1 {[%clk 0:01:26.7]} 20. Rxb1 {[%clk 0:02:01.7]} 20... Nxd4 {[%clk
0:01:18.9]} 21. Qxb7 {[%clk 0:01:58.2]} 21... Nc2 {[%clk 0:01:07]} 22. Re2
{[%clk 0:01:57]} 22... Nxe3 {[%clk 0:01:05.9]} 23. Rxe3 {[%clk 0:01:56.9]} 23...
Rab8 {[%clk 0:00:27.3]} 24. Qxc7 {[%clk 0:01:56.2]} 24... Rbc8 {[%clk
0:00:26.7]} 25. Qb7 {[%clk 0:01:51.2]} 25... Rb8 {[%clk 0:00:26.2]} 26. Qf3
{[%clk 0:01:47.9]} 26... Rxe3 {[%clk 0:00:24]} 27. Qxe3 {[%clk 0:01:48.1]} 27...
d5 {[%clk 0:00:24.6]} 28. Qd2 {[%clk 0:01:42.3]} 28... Qc4 {[%clk 0:00:24.5]}
29. Rc1 {[%clk 0:01:40.1]} 29... Qb5 {[%clk 0:00:23.5]} 30. Rc2 {[%clk
0:01:38.6]} 30... Bd6 {[%clk 0:00:23.7]} 31. Nf5 {[%clk 0:01:35.6]} 31... Be5
{[%clk 0:00:23.3]} 32. Ne7+ {[%clk 0:01:32.3]} 32... Kf8 {[%clk 0:00:20.4]} 33.
Nc6 {[%clk 0:01:30.9]} 33... Re8 {[%clk 0:00:18.6]} 34. b4 {[%clk 0:01:23.7]}
34... Bf6 {[%clk 0:00:16.2]} 35. Rc5 {[%clk 0:01:19.2]} 35... Qe2 {[%clk
0:00:12.9]} 36. Qxe2 {[%clk 0:01:18.7]} 36... Rxe2 {[%clk 0:00:13.1]} 37. Rxd5
{[%clk 0:01:19.1]} 37... Re1+ {[%clk 0:00:13.6]} 38. Kh2 {[%clk 0:01:18.7]}
38... Re2 {[%clk 0:00:13]} 39. Kg3 {[%clk 0:01:17.9]} 39... g6 {[%clk
0:00:11.4]} 40. Ra5 {[%clk 0:01:16.8]} 40... h5 {[%clk 0:00:05]} 41. Rxa6 {[%clk
0:01:16.1]} 41... h4+ {[%clk 0:00:05.6]} 42. Kf3 {[%clk 0:01:16.5]} 42... Rc2
{[%clk 0:00:05.4]} 43. b5 {[%clk 0:01:15.8]} 43... Rc3+ {[%clk 0:00:05.1]} 44.
Ke2 {[%clk 0:01:15.6]} 44... Rc2+ {[%clk 0:00:05.3]} 45. Kd3 {[%clk 0:01:15.6]}
45... Rxf2 {[%clk 0:00:05.3]} 46. b6 {[%clk 0:01:15.9]} 46... Rb2 {[%clk
0:00:05.8]} 47. Nb4 {[%clk 0:01:15.6]} 47... Be5 {[%clk 0:00:04.5]} 48. b7
{[%clk 0:01:15.7]} 48... Kg7 {[%clk 0:00:04.4]} 49. Ra8 {[%clk 0:01:14.6]} 49...
Rxg2 {[%clk 0:00:04.6]} 50. b8=Q {[%clk 0:01:14.7]} 50... Bxb8 {[%clk
0:00:03.9]} 51. Rxb8 {[%clk 0:01:15.6]} 51... Rg3+ {[%clk 0:00:04.4]} 52. Kc4
{[%clk 0:01:15.1]} 52... Rxa3 {[%clk 0:00:05.3]} 53. Nd3 {[%clk 0:01:14.1]}
53... Ra1 {[%clk 0:00:03.7]} 54. Rb3 {[%clk 0:01:12.3]} 54... Rh1 {[%clk
0:00:03.6]} 55. Ne5 {[%clk 0:01:11.9]} 55... Re1 {[%clk 0:00:03.4]} 56. Ng4
{[%clk 0:01:11.4]} 56... f5 {[%clk 0:00:03]} 57. Rb7+ {[%clk 0:01:10.9]} 57...
Kf8 {[%clk 0:00:03.3]} 58. Nf6 {[%clk 0:01:07.4]} 58... Re3 {[%clk 0:00:03.5]}
59. Kd5 {[%clk 0:01:07.6]} 59... Rxh3 {[%clk 0:00:02.6]} 60. Ke5 {[%clk
0:01:05.8]} 60... Re3+ {[%clk 0:00:02.8]} 61. Kf4 {[%clk 0:01:06.1]} 61... Re6
{[%clk 0:00:02.9]} 62. Kg5 {[%clk 0:01:06.4]} 62... h3 {[%clk 0:00:02.9]} 63.
Kxg6 {[%clk 0:01:06.6]} 1-0

[Event "*** Titled Tuesday Blitz"]
[Site "Chess.com"]
[Date "2020.12.29"]
[Round "5"]
[White "LimeInTheCoconut"]
[Black "m_ezat"]
[Result "1-0"]
[WhiteElo "2373"]
[BlackElo "2525"]
[TimeControl "180+1"]
[EndTime "10:54:55 PST"]
[Termination "LimeInTheCoconut won on time"]

1. d4 {[%clk 0:03:00.9]} 1... Nf6 {[%clk 0:02:59.2]} 2. c4 {[%clk 0:03:00.4]}
2... g6 {[%clk 0:02:58.7]} 3. f3 {[%clk 0:02:59.7]} 3... Bg7 {[%clk 0:02:58.9]}
4. e4 {[%clk 0:02:59.9]} 4... d6 {[%clk 0:02:59.5]} 5. Bg5 {[%clk 0:02:56.5]}
5... O-O {[%clk 0:02:59.4]} 6. Qd2 {[%clk 0:02:56.1]} 6... c5 {[%clk 0:02:59.7]}
7. d5 {[%clk 0:02:53.3]} 7... e6 {[%clk 0:02:59.9]} 8. Ne2 {[%clk 0:02:45.6]}
8... exd5 {[%clk 0:02:59.3]} 9. cxd5 {[%clk 0:02:45.6]} 9... h6 {[%clk
0:02:54.8]} 10. Be3 {[%clk 0:02:40.9]} 10... Re8 {[%clk 0:02:49.8]} 11. Nec3
{[%clk 0:02:38.2]} 11... a6 {[%clk 0:02:47]} 12. a4 {[%clk 0:02:36.5]} 12...
Nbd7 {[%clk 0:02:45.9]} 13. Na3 {[%clk 0:02:29.5]} 13... Ne5 {[%clk 0:02:44.9]}
14. Be2 {[%clk 0:02:23.3]} 14... h5 {[%clk 0:02:43.9]} 15. O-O {[%clk
0:02:21.2]} 15... Bd7 {[%clk 0:02:41.8]} 16. h3 {[%clk 0:02:16.2]} 16... b5
{[%clk 0:02:12.3]} 17. axb5 {[%clk 0:02:12.3]} 17... axb5 {[%clk 0:02:11.1]} 18.
Naxb5 {[%clk 0:02:11.7]} 18... Rxa1 {[%clk 0:02:10.7]} 19. Rxa1 {[%clk
0:02:12.6]} 19... Qb6 {[%clk 0:02:03.7]} 20. f4 {[%clk 0:02:01.9]} 20... Neg4
{[%clk 0:01:43.7]} 21. hxg4 {[%clk 0:01:58.5]} 21... Nxg4 {[%clk 0:01:41.5]} 22.
Bxg4 {[%clk 0:01:56.9]} 22... hxg4 {[%clk 0:01:34.3]} 23. Na3 {[%clk 0:01:48.6]}
23... g3 {[%clk 0:01:30]} 24. Nc4 {[%clk 0:01:45.6]} 24... Qd8 {[%clk
0:01:24.5]} 25. Nxd6 {[%clk 0:01:43.1]} 25... Qh4 {[%clk 0:01:17.6]} 26. e5
{[%clk 0:01:21.1]} 26... Qh2+ {[%clk 0:01:08.8]} 27. Kf1 {[%clk 0:01:20.9]}
27... Qh1+ {[%clk 0:00:53.9]} 28. Bg1 {[%clk 0:01:20.2]} 28... Bxe5 {[%clk
0:00:47.3]} 29. fxe5 {[%clk 0:01:09.5]} 29... Rxe5 {[%clk 0:00:46.6]} 30. Qf4
{[%clk 0:01:00.1]} 30... Rf5 {[%clk 0:00:22.5]} 31. Nxf5 {[%clk 0:00:59.5]}
31... Bxf5 {[%clk 0:00:22.6]} 32. Qxg3 {[%clk 0:00:40.8]} 32... c4 {[%clk
0:00:20.8]} 33. Ra8+ {[%clk 0:00:34.1]} 33... Kh7 {[%clk 0:00:07.7]} 34. Qh2+
{[%clk 0:00:34]} 34... Qxh2 {[%clk 0:00:02.7]} 35. Bxh2 {[%clk 0:00:34.9]} 35...
g5 {[%clk 0:00:02.4]} 36. Be5 {[%clk 0:00:33.4]} 36... Kg6 {[%clk 0:00:02.8]}
37. Kf2 {[%clk 0:00:31.7]} 37... Bd3 {[%clk 0:00:03.7]} 38. Ke3 {[%clk
0:00:30.1]} 38... f6 {[%clk 0:00:04.6]} 39. Bd4 {[%clk 0:00:29.7]} 39... Kf5
{[%clk 0:00:05.5]} 40. Rf8 {[%clk 0:00:29]} 40... Bf1 {[%clk 0:00:05.2]} 41.
Rxf6+ {[%clk 0:00:29.9]} 41... Kg4 {[%clk 0:00:03.1]} 42. Rxf1 {[%clk
0:00:29.8]} 1-0

[Event "*** Titled Tuesday Blitz"]
[Site "Chess.com"]
[Date "2020.12.29"]
[Round "5"]
[White "MarcLonoff"]
[Black "Abdimalik_Abdisalimov"]
[Result "0-1"]
[WhiteElo "2158"]
[BlackElo "2433"]
[TimeControl "180+1"]
[EndTime "10:54:56 PST"]
[Termination "Abdimalik_Abdisalimov won on time"]

1. c4 {[%clk 0:02:58.3]} 1... c5 {[%clk 0:02:57.3]} 2. Nc3 {[%clk 0:02:57.1]}
2... g6 {[%clk 0:02:55.8]} 3. g3 {[%clk 0:02:56.3]} 3... Bg7 {[%clk 0:02:53.1]}
4. Bg2 {[%clk 0:02:56.4]} 4... e6 {[%clk 0:02:50.4]} 5. e4 {[%clk 0:02:51.3]}
5... Ne7 {[%clk 0:02:47.3]} 6. Nge2 {[%clk 0:02:50.3]} 6... Nbc6 {[%clk
0:02:43.6]} 7. d3 {[%clk 0:02:44.6]} 7... O-O {[%clk 0:02:41.1]} 8. Be3 {[%clk
0:02:36.1]} 8... Nd4 {[%clk 0:02:25.3]} 9. O-O {[%clk 0:02:31.2]} 9... e5 {[%clk
0:02:19.3]} 10. Nd5 {[%clk 0:02:05.1]} 10... d6 {[%clk 0:02:09.7]} 11. Nxd4
{[%clk 0:01:59.8]} 11... cxd4 {[%clk 0:02:02.5]} 12. Bg5 {[%clk 0:01:57]} 12...
f6 {[%clk 0:02:00.7]} 13. Bd2 {[%clk 0:01:56.2]} 13... Nxd5 {[%clk 0:01:59.1]}
14. cxd5 {[%clk 0:01:46.8]} 14... f5 {[%clk 0:01:53.1]} 15. f4 {[%clk
0:01:35.6]} 15... Qe7 {[%clk 0:01:45.8]} 16. Qb3 {[%clk 0:01:28.3]} 16... Kh8
{[%clk 0:01:39.7]} 17. Rac1 {[%clk 0:01:14.1]} 17... b6 {[%clk 0:01:14.6]} 18.
Qa3 {[%clk 0:01:01.5]} 18... Bb7 {[%clk 0:01:06.8]} 19. Bb4 {[%clk 0:00:52.8]}
19... Rfd8 {[%clk 0:01:00.3]} 20. fxe5 {[%clk 0:00:41.2]} 20... Qxe5 {[%clk
0:00:52]} 21. Rce1 {[%clk 0:00:31.6]} 21... fxe4 {[%clk 0:00:44.2]} 22. dxe4
{[%clk 0:00:23.6]} 22... a5 {[%clk 0:00:41.6]} 23. Bd2 {[%clk 0:00:19.9]} 23...
d3 {[%clk 0:00:29.2]} 24. Bc3 {[%clk 0:00:16.7]} 24... Qe7 {[%clk 0:00:28.5]}
25. Bxg7+ {[%clk 0:00:14.7]} 25... Qxg7 {[%clk 0:00:29.4]} 26. Qxd3 {[%clk
0:00:14]} 26... Rf8 {[%clk 0:00:27.7]} 27. b3 {[%clk 0:00:12.5]} 27... Ba6
{[%clk 0:00:24.6]} 28. Rxf8+ {[%clk 0:00:10.7]} 28... Qxf8 {[%clk 0:00:22.8]}
29. Qe3 {[%clk 0:00:09.6]} 29... b5 {[%clk 0:00:11.5]} 30. Rc1 {[%clk
0:00:08.3]} 30... Re8 {[%clk 0:00:06.6]} 31. Rc7 {[%clk 0:00:05.8]} 31... Qf6
{[%clk 0:00:06.1]} 32. Qh6 {[%clk 0:00:02.6]} 32... Qd4+ {[%clk 0:00:03.9]} 0-1

[Event "*** Titled Tuesday Blitz"]
[Site "Chess.com"]
[Date "2020.12.29"]
[Round "5"]
[White "Sviridov_Valery"]
[Black "vladimirdamjanovic"]
[Result "0-1"]
[WhiteElo "2847"]
[BlackElo "2408"]
[TimeControl "180+1"]
[EndTime "10:55:01 PST"]
[Termination "vladimirdamjanovic won by resignation"]

1. Nf3 {[%clk 0:02:17.5]} 1... Nc6 {[%clk 0:02:58.7]} 2. g3 {[%clk 0:02:15.6]}
2... g6 {[%clk 0:02:36.7]} 3. Bg2 {[%clk 0:02:13.7]} 3... Bg7 {[%clk 0:02:37.2]}
4. O-O {[%clk 0:02:14.6]} 4... Nf6 {[%clk 0:02:36.3]} 5. c4 {[%clk 0:02:15.1]}
5... O-O {[%clk 0:02:34.6]} 6. Nc3 {[%clk 0:02:15.6]} 6... d6 {[%clk 0:02:34.4]}
7. d4 {[%clk 0:02:14.4]} 7... e5 {[%clk 0:02:33.3]} 8. dxe5 {[%clk 0:02:15.3]}
8... dxe5 {[%clk 0:02:32.8]} 9. Bg5 {[%clk 0:02:14.4]} 9... h6 {[%clk
0:02:32.6]} 10. Qxd8 {[%clk 0:02:12]} 10... Rxd8 {[%clk 0:02:33.5]} 11. Bxf6
{[%clk 0:02:12.5]} 11... Bxf6 {[%clk 0:02:34.4]} 12. Nd5 {[%clk 0:02:12.4]}
12... Kg7 {[%clk 0:02:34.8]} 13. Nxc7 {[%clk 0:02:09.9]} 13... Rb8 {[%clk
0:02:34.6]} 14. Rad1 {[%clk 0:02:01.2]} 14... e4 {[%clk 0:02:26.4]} 15. Rxd8
{[%clk 0:01:59.6]} 15... Bxd8 {[%clk 0:02:25.1]} 16. Ne8+ {[%clk 0:01:54.6]}
16... Kf8 {[%clk 0:02:25.2]} 17. Nd6 {[%clk 0:01:55.5]} 17... exf3 {[%clk
0:02:25.1]} 18. exf3 {[%clk 0:01:44.6]} 18... Be6 {[%clk 0:02:16.6]} 19. b3
{[%clk 0:01:30.5]} 19... Be7 {[%clk 0:01:56.2]} 20. Nb5 {[%clk 0:01:29.9]} 20...
Rd8 {[%clk 0:01:36]} 21. Nc7 {[%clk 0:01:28.7]} 21... Rd2 {[%clk 0:01:34.6]} 22.
Nxe6+ {[%clk 0:01:26.7]} 22... fxe6 {[%clk 0:01:34.6]} 23. a4 {[%clk 0:01:27.6]}
23... Bc5 {[%clk 0:01:32.9]} 24. f4 {[%clk 0:01:25.4]} 24... Na5 {[%clk
0:01:25.5]} 25. Bh3 {[%clk 0:01:23.3]} 25... Kf7 {[%clk 0:01:23.2]} 26. b4
{[%clk 0:01:19.7]} 26... Bxb4 {[%clk 0:01:21.6]} 27. Re1 {[%clk 0:01:20.6]}
27... Rd6 {[%clk 0:01:18.7]} 28. Re2 {[%clk 0:01:21]} 28... Bc5 {[%clk
0:01:12.1]} 29. Re4 {[%clk 0:01:17.2]} 29... Nb3 {[%clk 0:01:01.6]} 30. Kg2
{[%clk 0:01:15.3]} 30... b6 {[%clk 0:00:52.4]} 31. Re2 {[%clk 0:01:06.9]} 31...
Nd2 {[%clk 0:00:20.4]} 32. Bxe6+ {[%clk 0:01:05]} 32... Rxe6 {[%clk 0:00:21]}
33. Rxd2 {[%clk 0:01:05.4]} 33... Rd6 {[%clk 0:00:21.1]} 34. Rc2 {[%clk
0:00:58.6]} 34... Rd3 {[%clk 0:00:19.9]} 35. Ra2 {[%clk 0:00:58.2]} 35... Ra3
{[%clk 0:00:18.4]} 36. Rxa3 {[%clk 0:00:50]} 36... Bxa3 {[%clk 0:00:19.3]} 37.
Kf3 {[%clk 0:00:50.5]} 37... Ke6 {[%clk 0:00:19.4]} 38. Ke4 {[%clk 0:00:50.6]}
38... Bc5 {[%clk 0:00:20]} 39. f3 {[%clk 0:00:50.9]} 39... a5 {[%clk 0:00:07.5]}
40. g4 {[%clk 0:00:50.6]} 40... Bg1 {[%clk 0:00:03.6]} 41. h3 {[%clk 0:00:50.2]}
41... Kd6 {[%clk 0:00:04.2]} 42. f5 {[%clk 0:00:48.3]} 42... g5 {[%clk
0:00:04.7]} 43. f4 {[%clk 0:00:48.1]} 43... Bh2 {[%clk 0:00:04.2]} 44. fxg5
{[%clk 0:00:46.6]} 44... hxg5 {[%clk 0:00:05.1]} 45. Kd4 {[%clk 0:00:46.9]}
45... Be5+ {[%clk 0:00:04.7]} 46. Ke4 {[%clk 0:00:43.2]} 46... Bf6 {[%clk
0:00:05.1]} 47. Kf3 {[%clk 0:00:38.4]} 47... Kc5 {[%clk 0:00:03]} 0-1

[Event "*** Titled Tuesday Blitz"]
[Site "Chess.com"]
[Date "2020.12.29"]
[Round "5"]
[White "profofchess"]
[Black "stephan97"]
[Result "1-0"]
[WhiteElo "2405"]
[BlackElo "2237"]
[TimeControl "180+1"]
[EndTime "10:55:01 PST"]
[Termination "profofchess won by checkmate"]

1. e4 {[%clk 0:03:00.9]} 1... c5 {[%clk 0:02:59.9]} 2. Nf3 {[%clk 0:03:00.5]}
2... d6 {[%clk 0:03:00.2]} 3. d4 {[%clk 0:03:00]} 3... cxd4 {[%clk 0:03:00.6]}
4. Nxd4 {[%clk 0:03:00.9]} 4... Nf6 {[%clk 0:03:01.1]} 5. Nc3 {[%clk 0:03:00.7]}
5... a6 {[%clk 0:03:01.7]} 6. Nb3 {[%clk 0:02:59.5]} 6... e5 {[%clk 0:02:58.3]}
7. Bg5 {[%clk 0:02:59.2]} 7... Be6 {[%clk 0:02:56]} 8. Bxf6 {[%clk 0:02:56.3]}
8... Qxf6 {[%clk 0:02:55.5]} 9. Na5 {[%clk 0:02:56.9]} 9... Qd8 {[%clk
0:02:19.4]} 10. Nc4 {[%clk 0:02:55.4]} 10... b5 {[%clk 0:02:13.9]} 11. Ne3
{[%clk 0:02:53.4]} 11... Nc6 {[%clk 0:02:08.1]} 12. Ncd5 {[%clk 0:02:48.1]}
12... g6 {[%clk 0:02:04.3]} 13. c3 {[%clk 0:02:43.6]} 13... Bg7 {[%clk
0:02:04.6]} 14. a4 {[%clk 0:02:41.8]} 14... b4 {[%clk 0:01:51.4]} 15. cxb4
{[%clk 0:02:27.9]} 15... O-O {[%clk 0:01:50.1]} 16. a5 {[%clk 0:01:37.3]} 16...
f5 {[%clk 0:01:47]} 17. exf5 {[%clk 0:01:31.7]} 17... gxf5 {[%clk 0:01:45.4]}
18. Nb6 {[%clk 0:01:30.5]} 18... Ra7 {[%clk 0:01:43.8]} 19. Bc4 {[%clk
0:01:29.4]} 19... Bxc4 {[%clk 0:01:31.8]} 20. Nexc4 {[%clk 0:01:26.6]} 20...
Nxb4 {[%clk 0:01:28.4]} 21. Qb3 {[%clk 0:01:12.6]} 21... Nc6 {[%clk 0:01:07.8]}
22. Nxe5+ {[%clk 0:01:01.5]} 22... Kh8 {[%clk 0:01:06]} 23. Nxc6 {[%clk
0:00:58.3]} 23... Qe8+ {[%clk 0:01:05.7]} 24. Qe3 {[%clk 0:00:46.1]} 24... Qxc6
{[%clk 0:01:04.1]} 25. O-O {[%clk 0:00:44.7]} 25... Bxb2 {[%clk 0:01:00.5]} 26.
Rab1 {[%clk 0:00:35.1]} 26... Bg7 {[%clk 0:00:55.5]} 27. f4 {[%clk 0:00:16.2]}
27... Rc7 {[%clk 0:00:51.5]} 28. Rfc1 {[%clk 0:00:07]} 28... Qd7 {[%clk
0:00:49.7]} 29. Nxd7 {[%clk 0:00:06.5]} 29... Rxd7 {[%clk 0:00:48.5]} 30. Kh1
{[%clk 0:00:06]} 30... d5 {[%clk 0:00:47.2]} 31. Qd3 {[%clk 0:00:06.2]} 31... d4
{[%clk 0:00:46.7]} 32. Rb6 {[%clk 0:00:05.2]} 32... Re8 {[%clk 0:00:46.1]} 33.
Rxa6 {[%clk 0:00:05.2]} 33... Rde7 {[%clk 0:00:43.8]} 34. h3 {[%clk 0:00:04.7]}
34... Re3 {[%clk 0:00:40.2]} 35. Qxf5 {[%clk 0:00:04.9]} 35... d3 {[%clk
0:00:40.7]} 36. Rd6 {[%clk 0:00:03.9]} 36... Rf8 {[%clk 0:00:37.5]} 37. Qd7
{[%clk 0:00:03.2]} 37... Re2 {[%clk 0:00:32.9]} 38. Rxd3 {[%clk 0:00:03.1]}
38... Bh6 {[%clk 0:00:29.9]} 39. Rc8 {[%clk 0:00:03.1]} 39... Rxc8 {[%clk
0:00:27.9]} 40. Qxc8+ {[%clk 0:00:02.9]} 40... Kg7 {[%clk 0:00:28.5]} 41. Rd7+
{[%clk 0:00:03.3]} 41... Kf6 {[%clk 0:00:28.8]} 42. Qc6+ {[%clk 0:00:03.9]}
42... Kf5 {[%clk 0:00:29]} 43. Rd5+ {[%clk 0:00:04.2]} 43... Kxf4 {[%clk
0:00:29.4]} 44. Qc4+ {[%clk 0:00:04.5]} 44... Re4 {[%clk 0:00:29.1]} 45. Rd4
{[%clk 0:00:04.3]} 45... Kg3 {[%clk 0:00:28.8]} 46. Rxe4 {[%clk 0:00:04.1]}
46... Bf4 {[%clk 0:00:29]} 47. Qd3+ {[%clk 0:00:03.4]} 47... Kf2 {[%clk
0:00:27.6]} 48. Rxf4+ {[%clk 0:00:04.3]} 48... Ke1 {[%clk 0:00:28.2]} 49. Rf1#
{[%clk 0:00:04.1]} 1-0